bitfinex/quotes_ETHUSD_20241123
["timestamp","ask_amount","ask_price","bid_price","bid_amount"]
[1732341031451,0.8186,3337.4,3336.5,0.32806868]
[1732341031754,0.55433634,3337.3,3336.5,0.32806868]
[1732341032154,0.2771887,3337.3,3336.6,0.05743202]
[1732341033701,0.2771887,3337.3,3336.7,0.2981]
[1732341034057,0.2771887,3337.3,3336.8,0.05703432]
[1732341034352,0.2771887,3337.3,3336.7,0.2981]
[1732341034556,0.2771887,3337.3,3336.9,0.05701325]
[1732341034769,0.2771887,3337.3,3336.5,0.2981]
[1732341034973,0.2771887,3337.3,3337.0,0.05699217]
[1732341035172,0.2771887,3337.3,3336.5,0.2981]
[1732341035384,0.2771887,3337.3,3337.1,0.05700783]
[1732341035592,0.2771887,3337.3,3336.5,0.2981]
[1732341035792,0.2771887,3337.3,3337.2,0.05697941]
[1732341035968,0.55403471,3337.3,3336.5,0.2981]
[1732341036178,0.2771887,3337.3,3337.2,0.05697207]
[1732341036368,0.55400671,3337.3,3336.5,0.2981]
[1732341036701,0.2771887,3337.3,3337.2,0.05696472]
[1732341036888,0.2771887,3337.3,3336.5,0.2981]
[1732341037206,0.2771887,3337.3,3336.6,0.05707648]
[1732341037503,0.2771887,3337.3,3336.7,0.2981]
[1732341037802,0.2771887,3337.3,3336.8,0.05703432]
[1732341037960,0.2771887,3337.3,3336.7,0.2981]
[1732341038297,1.0894887,3337.3,3336.9,0.05701325]
[1732341038465,0.8186,3337.2,3336.8,0.05707106]
[1732341038805,0.8186,3337.2,3336.5,0.2981]
[1732341039004,0.27694632,3337.1,3336.9,0.05704264]
[1732341039307,0.27694632,3337.1,3336.5,0.2981]
[1732341039601,0.27694632,3337.1,3336.6,0.05709118]
[1732341039786,0.27694632,3337.1,3336.2,0.32807057]
[1732341040113,0.8186,3337.2,3336.7,0.0570701]
[1732341040273,0.8186,3337.2,3336.2,0.2981]
[1732341040473,0.98169,3337.2,3336.8,0.05703432]
[1732341040675,0.98169,3337.2,3336.2,0.2981]
[1732341040858,0.8113,3337.0,3336.0,0.2981]
[1732341041178,0.8113,3336.8,3336.0,0.2981]
[1732341041366,0.8113,3336.8,3336.1,0.05319027]
[1732341042976,0.8113,3336.8,3335.7,0.2981]
[1732341043196,1.08822531,3336.7,3336.2,0.0531835]
[1732341043403,1.08822531,3336.6,3335.7,0.2981]
[1732341043694,0.8113,3336.6,3336.3,0.05316241]
[1732341043906,0.8113,3336.6,3335.7,0.2981]
[1732341044261,0.8113,3336.6,3335.8,0.05326069]
[1732341047413,0.27669602,3336.5,3335.5,0.2981]
[1732341047737,0.8113,3336.4,3335.9,0.0514075]
[1732341048030,0.8113,3336.4,3335.5,0.2981]
[1732341048227,0.8113,3336.4,3336.0,0.05138641]
[1732341048430,0.8113,3336.4,3335.5,0.2981]
[1732341048625,0.8113,3336.4,3336.1,0.05136532]
[1732341048930,0.8113,3336.2,3335.5,0.2981]
[1732341049295,0.8113,3336.2,3335.6,0.05139543]
[1732341049624,0.8113,3336.2,3335.6,0.34949543]
[1732341050152,0.8113,3336.2,3335.6,1.12879543]
[1732341051304,0.8113,3336.2,3335.7,0.2981]
[1732341051711,0.8113,3336.2,3335.8,0.05134609]
[1732341052428,0.8113,3336.2,3335.4,0.2981]
[1732341052694,0.8113,3336.2,3335.9,0.05130794]
[1732341052855,0.8113,3336.2,3335.4,0.2981]
[1732341053034,0.8113,3336.2,3336.0,0.05134412]
[1732341053236,0.8113,3336.2,3335.2,3.0]
[1732341053405,0.8113,3336.2,3336.1,0.05133019]
[1732341053605,0.8113,3336.2,3335.3,0.2981]
[1732341053842,0.8113,3336.2,3336.1,0.05133019]
[1732341054033,0.8113,3336.2,3335.6,0.2981]
[1732341054234,0.8113,3336.2,3336.1,0.05133019]
[1732341054549,0.8113,3336.2,3335.6,0.2981]
[1732341054700,0.8113,3336.2,3336.1,0.05133019]
[1732341054904,0.8113,3336.2,3335.6,0.2981]
[1732341055103,0.8113,3336.2,3336.1,0.05133019]
[1732341055423,0.8113,3336.2,3336.1,0.05132316]
[1732341055626,0.8113,3336.2,3335.6,0.2981]
[1732341055824,0.8113,3336.2,3336.1,0.05132316]
[1732341056006,0.8113,3336.2,3335.6,0.2981]
[1732341056213,0.8113,3336.2,3336.1,0.05132316]
[1732341056657,0.8113,3336.2,3335.6,0.2981]
[1732341056952,0.8113,3336.2,3336.1,0.05132316]
[1732341057113,0.8113,3336.2,3335.6,0.2981]
[1732341057312,0.8113,3336.2,3336.1,0.05132316]
[1732341057512,0.8113,3336.2,3335.6,0.2981]
[1732341057715,0.8113,3336.2,3336.1,0.05136133]
[1732341058260,0.8113,3336.2,3335.6,0.2981]
[1732341058462,0.8113,3336.2,3336.1,0.05136133]
[1732341058670,0.8113,3336.2,3335.6,0.2981]
[1732341058979,0.8113,3336.2,3336.1,0.05136133]
[1732341059130,0.8113,3336.2,3335.6,0.2981]
[1732341059317,0.8113,3336.2,3336.1,0.05136133]
[1732341059517,0.8113,3336.2,3335.6,0.2981]
[1732341059717,0.8113,3336.2,3336.1,0.05136133]
[1732341059917,0.8113,3336.2,3335.6,0.2981]
[1732341060117,0.8113,3336.2,3336.1,0.05136133]
[1732341061163,0.8113,3336.2,3335.6,0.2981]
[1732341061366,0.8113,3336.2,3336.1,0.05136133]
[1732341061661,0.8113,3336.2,3335.2,1.417]
[1732341061834,0.8113,3336.2,3336.1,0.05146775]
[1732341062025,1.08867345,3336.2,3335.2,1.117]
[1732341062238,1.08867345,3336.2,3336.1,0.05146775]
[1732341062444,1.08868897,3336.2,3335.2,4.117]
[1732341062661,0.8113,3336.2,3336.1,0.05146775]
[1732341062946,0.8113,3336.2,3335.4,0.2981]
[1732341063157,0.8113,3336.2,3336.1,0.05146775]
[1732341063362,0.8113,3336.2,3335.4,0.2981]
[1732341063533,0.8113,3336.2,3335.3,0.2981]
[1732341063720,0.8113,3336.2,3335.5,0.05159429]
[1732341064063,0.8113,3336.2,3335.6,0.0515732]
[1732341064363,0.8113,3336.2,3335.3,0.2981]
[1732341064561,0.8113,3336.2,3335.7,0.0515521]
[1732341064718,0.8113,3336.2,3335.3,0.2981]
[1732341065361,0.8113,3336.2,3335.4,0.05161538]
[1732341065968,0.8113,3336.2,3335.6,0.2981]
[1732341066460,0.8113,3336.2,3335.7,0.0515521]
[1732341067558,0.8113,3336.2,3335.3,0.2981]
[1732341067862,0.8113,3336.2,3335.5,0.2981]
[1732341068063,0.7564,3337.1,3335.6,0.0299765]
[1732341068351,0.27760377,3337.0,3336.0,0.2981]
[1732341068525,0.27763143,3336.9,3336.2,0.2981]
[1732341068715,0.27763143,3337.0,3336.2,0.2981]
[1732341068918,0.27763143,3337.0,3335.1,0.02997198]
[1732341068919,0.28763143,3336.9,3335.2,0.2981]
[1732341069153,0.27763143,3336.8,3336.3,0.04967253]
[1732341069354,0.0446477,3337.0,3335.3,0.029972]
[1732341069664,0.0446477,3337.0,3335.7,0.2981]
[1732341069862,0.08461976,3337.0,3335.9,0.2981]
[1732341070331,0.08461976,3337.0,3336.0,0.04968221]
[1732341071045,0.0546477,3337.0,3335.7,0.2981]
[1732341071357,0.08461976,3337.0,3336.1,0.04966112]
[1732341071514,0.08461976,3337.0,3335.8,0.02996856]
[1732341071716,0.08461976,3337.0,3336.2,0.04963288]
[1732341071915,0.08461976,3337.0,3336.4,0.2981]
[1732341072152,0.07461976,3337.0,3336.4,0.2981]
[1732341072451,0.21097968,3337.0,3336.5,0.04956248]
[1732341074240,0.0446477,3337.0,3336.4,0.2981]
[1732341074668,0.0446477,3337.0,3336.4,3.2981]
[1732341074970,0.0446477,3337.0,3336.5,0.04957679]
[1732341075576,0.0446477,3337.0,3336.8,0.2981]
[1732341075934,0.0446477,3337.0,3336.9,0.04947817]
[1732341078157,0.0446477,3337.0,3336.9,0.34757817]
[1732341078462,0.0446477,3337.0,3336.9,4.13847817]
[1732341078782,0.0446477,3337.0,3336.9,1.55232599]
[1732341079076,0.0446477,3337.0,3336.9,0.34757817]
[1732341079288,0.0446477,3337.0,3336.9,0.04947817]
[1732341079468,0.0446477,3337.0,3336.6,0.2981]
[1732341079670,0.7987,3336.9,3336.6,0.2981]
[1732341079841,0.8433477,3336.9,3336.6,0.2981]
[1732341080344,0.8433477,3336.9,3336.4,0.2981]
[1732341080565,0.8433477,3336.9,3336.7,0.04928932]
[1732341080882,0.8433477,3336.9,3336.8,0.04926824]
[1732341081054,0.8433477,3336.9,3336.4,0.2981]
[1732341081055,0.0446477,3336.9,3336.4,0.2981]
[1732341081385,0.0446477,3336.9,3336.8,0.04926824]
[1732341081545,0.0446477,3336.9,3336.6,0.2981]
[1732341081968,0.0446477,3336.9,3336.7,0.04930537]
[1732341089521,0.7987,3336.8,3336.7,0.34740537]
[1732341090996,0.0446477,3336.9,3336.7,0.34740537]
[1732341091510,0.0446477,3336.9,3336.7,0.04930537]
[1732341091805,0.0446477,3336.9,3336.8,0.0493143]
[1732341092005,0.0446477,3336.9,3336.5,0.2981]
[1732341092206,0.0446477,3336.9,3336.6,0.0493143]
[1732341095709,0.0446477,3336.9,3336.7,0.2981]
[1732341095912,0.0446477,3336.9,3336.8,1.10196352]
[1732341096273,0.0446477,3336.9,3336.8,4.15127782]
[1732341096509,0.0446477,3336.9,3336.8,1.5664056]
[1732341096779,0.0446477,3336.9,3336.8,1.15127782]
[1732341097172,0.0446477,3336.9,3336.8,0.37737782]
[1732341097370,0.0446477,3336.9,3336.8,1.15127782]
[1732341097598,0.0446477,3336.9,3336.8,1.70127782]
[1732341098119,0.377377,3337.8,3337.0,0.2981]
[1732341098415,0.377377,3337.8,3337.2,0.2981]
[1732341098713,0.377377,3337.8,3337.3,0.04914772]
[1732341098899,0.01,3337.6,3337.3,0.04914772]
[1732341099211,0.8287,3337.4,3337.3,0.04914772]
[1732341099516,0.8187,3337.3,3336.5,0.2981]
[1732341099673,0.27773323,3337.2,3336.5,0.2981]
[1732341099871,0.27773323,3337.2,3336.6,0.0492832]
[1732341100077,0.27773323,3337.2,3336.7,0.2981]
[1732341100508,0.02,3336.8,3336.7,0.2981]
[1732341100814,1.11643323,3336.8,3336.7,0.2981]
[1732341101313,1.11643323,3336.8,3335.8,0.32807065]
[1732341101517,0.27773323,3336.7,3335.8,0.50298359]
[1732341102679,0.8287,3336.8,3335.8,0.50298359]
[1732341102879,0.27780483,3336.7,3335.8,0.50298359]
[1732341104284,0.8287,3336.8,3335.8,0.50298359]
[1732341104586,0.01,3336.7,3335.8,0.50298359]
[1732341104787,0.28772406,3336.7,3335.8,0.50298359]
[1732341105090,0.8287,3336.8,3335.8,0.50298359]
[1732341105287,0.8187,3336.8,3335.8,0.50298359]
[1732341105593,0.01,3336.7,3335.8,0.50298359]
[1732341109406,0.01,3336.6,3335.8,0.50298359]
[1732341110127,0.01,3336.6,3335.8,0.47301294]
[1732341110366,0.01,3336.6,3335.8,0.2981]
[1732341110515,0.01,3336.6,3335.9,0.04960236]
[1732341114306,0.01,3336.6,3336.0,0.02997155]
[1732341114705,0.01,3336.6,3336.1,0.04956735]
[1732341115306,0.8187,3336.9,3336.3,0.2981]
[1732341115706,0.8187,3336.9,3336.4,0.04951426]
[1732341116643,0.31752855,3336.8,3336.4,0.04951426]
[1732341116940,0.03997206,3336.8,3336.4,0.04951426]
[1732341117240,0.8187,3336.6,3335.9,0.2981]
[1732341117610,0.8187,3336.6,3336.0,0.04960087]
[1732341118959,0.8187,3336.6,3336.1,0.2981]
[1732341119360,0.8187,3336.6,3335.8,0.7628]
[1732341119361,0.8187,3336.6,3336.2,0.34780559]
[1732341120459,0.8187,3336.6,3336.2,0.04970559]
[1732341120660,0.8187,3336.6,3335.9,0.2981]
[1732341120862,0.8187,3336.6,3336.3,0.04964081]
[1732341121060,0.8187,3336.6,3335.9,3.2981]
[1732341121275,0.8187,3336.6,3336.4,0.04961942]
[1732341121449,0.8187,3336.6,3336.1,0.2981]
[1732341121681,0.8187,3336.6,3336.2,0.04972221]
[1732341122049,0.7701,3336.8,3336.2,0.04972221]
[1732341122251,0.01,3336.8,3336.4,0.8208]
[1732341122589,0.7701,3337.0,3336.5,0.04964316]
[1732341123150,0.7601,3337.0,3336.5,0.04964316]
[1732341123374,0.7701,3337.2,3336.5,0.04964316]
[1732341123598,0.27779528,3337.1,3336.5,0.04964316]
[1732341123754,0.7701,3337.2,3336.5,0.04964316]
[1732341123953,0.7701,3337.2,3336.6,0.2981]
[1732341124380,0.7601,3337.2,3336.7,0.04954502]
[1732341124701,0.01,3337.4,3336.9,0.8208]
[1732341124883,0.01,3337.4,3336.9,1.1189]
[1732341125186,0.7801,3337.8,3337.0,0.04949258]
[1732341125348,0.01,3337.5,3337.0,0.04949258]
[1732341126791,0.02,3337.5,3337.0,0.04949258]
[1732341127176,0.01,3337.5,3337.0,0.04949258]
[1732341127490,0.02,3337.5,3337.0,0.04949258]
[1732341127805,0.01,3337.5,3337.0,0.34759258]
[1732341128302,0.7801,3337.8,3337.0,0.34759258]
[1732341128505,0.27806266,3337.7,3337.0,0.34759258]
[1732341128666,0.27806266,3337.7,3337.2,0.2981]
[1732341129092,0.27806266,3337.7,3337.3,0.04919454]
[1732341129465,0.7801,3337.8,3337.3,0.04919454]
[1732341129894,0.7701,3338.0,3337.3,0.04919454]
[1732341130212,0.01,3337.7,3337.3,0.04919454]
[1732341133007,0.7801,3338.0,3337.3,0.04919454]
[1732341133285,0.27787353,3337.8,3337.3,0.04919454]
[1732341133605,0.01,3338.2,3337.6,0.2981]
[1732341133908,0.01,3338.2,3337.7,0.04731579]
[1732341134503,0.01,3338.2,3337.8,0.2981]
[1732341134868,0.03997206,3338.2,3337.8,0.34365515]
[1732341135505,0.03997206,3338.2,3337.8,0.04555515]
[1732341136008,0.01,3338.2,3337.6,0.2981]
[1732341136206,0.01,3338.2,3337.8,0.04555515]
[1732341136711,0.01,3338.2,3337.6,0.2981]
[1732341136921,0.01,3338.2,3337.8,0.04555515]
[1732341137124,0.01,3338.2,3337.7,0.04557621]
[1732341137299,0.01,3338.2,3337.8,0.04555515]
[1732341137687,0.01,3338.2,3337.6,0.2981]
[1732341137921,0.01,3338.2,3337.8,0.04389901]
[1732341138121,0.01,3338.2,3337.7,0.04392008]
[1732341138319,0.01,3338.2,3337.8,0.04389901]
[1732341138522,0.01,3338.2,3337.8,3.34199901]
[1732341138718,0.01,3338.2,3337.8,3.29120801]
[1732341139030,0.01,3338.2,3337.8,3.33510505]
[1732341140124,0.01,3338.2,3337.8,0.04389704]
[1732341140575,0.01,3338.2,3337.6,0.28431602]
[1732341140715,0.01,3338.2,3337.8,0.04379377]
[1732341140891,0.01,3338.2,3337.7,0.04381483]
[1732341141093,0.01,3338.2,3337.8,0.04222691]
[1732341141511,0.01,3338.2,3337.6,0.28431602]
[1732341141715,0.01,3338.2,3337.8,0.04223406]
[1732341141923,0.01,3338.2,3337.7,0.04225513]
[1732341142119,0.01,3338.2,3337.8,0.04223406]
[1732341142421,0.01,3337.2,3336.7,0.2981]
[1732341142628,0.01,3337.1,3336.7,0.2981]
[1732341142936,0.01,3337.2,3336.7,0.2981]
[1732341143086,0.01,3337.2,3336.4,0.7676]
[1732341143087,0.01,3337.2,3336.5,0.2981]
[1732341143287,0.01,3337.2,3336.8,0.2981]
[1732341143493,0.02,3337.2,3336.8,0.2981]
[1732341144344,0.7779,3336.8,3336.5,0.2981]
[1732341144852,0.7779,3336.6,3336.5,0.2981]
[1732341145349,0.01,3336.4,3335.4,0.2981]
[1732341145643,0.01,3336.2,3335.4,0.47146049]
[1732341145823,0.01,3336.2,3335.5,0.02997315]
[1732341146232,0.01,3336.2,3335.6,0.2981]
[1732341147143,0.7679,3336.6,3335.8,0.2981]
[1732341147440,0.01,3336.6,3335.9,0.02997009]
[1732341147644,0.02,3336.8,3335.9,0.02997009]
[1732341147819,0.01,3336.6,3335.9,0.02997009]
[1732341148007,0.02,3336.8,3335.9,0.02997009]
[1732341148405,0.7779,3337.0,3336.2,0.2981]
[1732341148643,0.02,3337.2,3336.3,0.02996674]
[1732341149148,0.01,3337.0,3336.5,0.2981]
[1732341149306,0.02,3337.2,3336.5,0.2981]
[1732341149507,0.01,3337.0,3336.5,0.2981]
[1732341150244,0.01,3337.0,3336.6,0.2981]
[1732341150649,0.01,3337.2,3336.8,0.2981]
[1732341150856,0.01,3337.4,3336.8,0.2981]
[1732341151056,0.02,3337.6,3336.9,0.02996451]
[1732341151226,0.7679,3337.7,3336.9,0.02996451]
[1732341151838,0.02,3337.8,3336.9,0.02996451]
[1732341152035,0.02,3337.8,3337.0,0.2981]
[1732341152222,0.02,3337.8,3337.1,0.02996016]
[1732341152550,0.01,3337.8,3337.1,0.02996016]
[1732341152851,0.0046477,3337.9,3337.1,0.02996016]
[1732341153218,0.0046477,3337.9,3337.1,0.32806016]
[1732341153554,0.0046477,3337.9,3337.3,0.2981]
[1732341154418,0.0046477,3337.9,3337.2,0.02995867]
[1732341154614,0.0046477,3337.9,3337.1,0.32805868]
[1732341155428,0.0046477,3337.9,3337.3,0.2981]
[1732341155612,0.0046477,3337.9,3337.3,0.70818587]
[1732341155817,0.0046477,3337.9,3337.5,0.2981]
[1732341156132,0.0046477,3337.9,3337.6,0.03224472]
[1732341157763,0.0046477,3337.9,3337.3,0.02995661]
[1732341158058,0.0146477,3337.9,3337.2,0.7728]
[1732341158218,0.0146477,3337.9,3337.3,0.03110931]
[1732341158418,0.0046477,3337.9,3337.3,0.03110931]
[1732341158666,0.0046477,3337.9,3337.3,0.06106958]
[1732341158954,0.80111976,3338.3,3337.4,3.0]
[1732341159157,0.27782097,3338.2,3337.4,0.03108921]
[1732341159369,0.27782097,3338.2,3337.4,3.0]
[1732341159669,0.27782097,3338.2,3337.5,0.03106814]
[1732341160534,0.27782097,3338.2,3337.3,0.02995835]
[1732341161018,0.27782097,3338.2,3337.4,3.03108921]
[1732341161670,0.27782097,3338.2,3337.4,0.03108921]
[1732341162456,0.27782097,3338.2,3337.4,0.02995713]
[1732341162759,0.27782097,3338.2,3337.5,0.58106814]
[1732341163058,0.27782097,3338.2,3337.6,0.39105897]
[1732341163291,0.7524,3338.6,3337.7,0.82125959]
[1732341163455,0.27806443,3338.5,3337.7,0.82125959]
[1732341163882,0.27806443,3338.5,3337.7,1.11935959]
[1732341164566,0.7524,3338.6,3337.7,1.11935959]
[1732341165066,0.7524,3338.6,3337.9,0.00644458]
[1732341165384,0.0446477,3338.9,3338.1,0.00644458]
[1732341165587,0.2779797,3338.8,3338.2,0.00644458]
[1732341165784,0.0446477,3338.9,3338.3,0.00644458]
[1732341165950,0.0446477,3338.9,3338.4,0.00644458]
[1732341166150,0.0446477,3338.9,3338.5,0.00644458]
[1732341166393,0.0446477,3338.9,3338.6,0.00644458]
[1732341166700,0.0446477,3338.9,3338.8,0.00644458]
[1732341166916,0.32256759,3338.9,3338.8,0.00644458]
[1732341167980,0.0446477,3338.9,3338.8,0.00644458]
[1732341168488,0.0446477,3338.9,3338.8,0.03701847]
[1732341180208,0.8198477,3338.9,3338.8,0.03701847]
[1732341182901,1.09807713,3338.9,3338.8,0.03701847]
[1732341183433,1.2738202,3338.9,3338.8,0.00644458]
[1732341185241,1.09807713,3338.9,3338.8,0.00644458]
[1732341185736,1.09807713,3338.9,3338.8,0.03592339]
[1732341185737,0.32287713,3338.9,3338.8,0.03592339]
[1732341185943,0.32300665,3338.9,3338.8,0.03592339]
[1732341186507,1.13980665,3338.9,3338.8,0.03592339]
[1732341187036,1.13983601,3338.9,3338.8,0.00644458]
[1732341187448,1.13983601,3338.9,3338.8,0.0359134]
[1732341188550,1.13983601,3338.9,3338.8,0.00644458]
[1732341189854,1.13999386,3338.9,3338.8,0.00644458]
[1732341193257,1.14022317,3338.9,3338.8,0.00644458]
[1732341194333,1.14030316,3338.9,3338.8,0.00644458]
[1732341196255,1.31848271,3338.9,3338.8,0.00644458]
[1732341196418,1.03962725,3338.9,3338.8,0.00644458]
[1732341196755,1.31847211,3338.9,3338.8,0.00644458]
[1732341197777,1.31847211,3338.9,3337.4,0.2978]
[1732341197778,0.8168,3338.8,3337.4,0.2978]
[1732341197974,0.8168,3338.6,3337.4,0.2978]
[1732341198192,0.8168,3338.4,3337.4,0.2978]
[1732341198342,0.27884486,3338.3,3337.4,0.2978]
[1732341198540,0.27884486,3338.2,3337.4,0.2978]
[1732341198742,1.09564486,3338.1,3337.4,0.2978]
[1732341199055,0.27884486,3338.0,3337.4,0.2978]
[1732341199356,0.27884486,3337.9,3337.4,0.2978]
[1732341199564,0.27884486,3338.0,3337.4,0.70327]
[1732341199778,0.27884486,3337.9,3337.4,0.2978]
[1732341200080,0.8168,3338.1,3337.4,0.2978]
[1732341200452,0.27855362,3338.0,3337.4,0.2978]
[1732341200639,0.27855362,3338.0,3337.5,0.02874631]
[1732341200978,0.27855362,3338.0,3337.4,0.70327]
[1732341200979,0.27855362,3338.0,3337.4,0.2978]
[1732341201270,0.27855362,3338.0,3337.6,0.02873236]
[1732341201574,0.27855362,3338.0,3337.7,0.02870417]
[1732341201879,0.27855362,3338.0,3337.4,0.2978]
[1732341201880,0.27855362,3338.0,3337.4,0.70327]
[1732341202079,0.27855362,3338.0,3337.8,0.0286831]
[1732341202249,0.27855362,3338.0,3337.4,0.2978]
[1732341202452,0.27855362,3338.0,3337.9,0.02866204]
[1732341202669,0.27855362,3338.0,3337.4,0.2978]
[1732341202839,0.27855362,3338.0,3337.9,0.02866204]
[1732341203164,0.27855362,3338.0,3337.9,0.02875885]
[1732341203350,0.27855362,3338.0,3337.4,0.2978]
[1732341203679,0.27855362,3338.0,3337.9,0.02875174]
[1732341203890,0.27855362,3338.0,3337.4,0.2978]
[1732341204041,0.27855362,3338.0,3337.9,0.02875174]
[1732341204372,0.27855362,3338.0,3337.4,0.2978]
[1732341204597,0.27855362,3338.0,3337.9,0.02880867]
[1732341204794,0.27855362,3338.0,3337.4,0.2978]
[1732341205089,0.27855362,3338.0,3337.9,0.02880867]
[1732341205293,0.27855362,3338.0,3337.4,0.2978]
[1732341205797,0.27855362,3338.0,3337.5,0.028957]
[1732341205955,0.27855362,3338.0,3337.4,0.2978]
[1732341206161,0.27855362,3338.0,3337.6,0.02893593]
[1732341206400,0.27855362,3338.0,3337.4,0.2978]
[1732341206559,0.27855362,3338.0,3337.7,0.02891485]
[1732341206759,0.8168,3338.1,3337.4,0.2978]
[1732341206984,0.27823144,3338.0,3337.4,0.2978]
[1732341207298,0.27823144,3338.0,3337.5,0.028957]
[1732341207610,0.27823144,3338.0,3337.7,0.2978]
[1732341207812,0.8262,3338.6,3337.7,0.2978]
[1732341208105,0.8262,3338.6,3337.8,0.02889378]
[1732341208106,0.27822627,3338.5,3337.8,0.02889378]
[1732341208272,0.45353772,3338.4,3337.8,0.02889378]
[1732341208461,0.27822627,3338.3,3337.8,0.02889378]
[1732341208657,0.27822627,3338.2,3337.8,0.02889378]
[1732341208986,0.27822627,3338.1,3337.9,0.02881578]
[1732341209182,0.27822627,3338.0,3337.7,0.2978]
[1732341209404,0.8262,3338.6,3338.0,0.02879472]
[1732341209703,0.8262,3338.4,3337.5,0.2978]
[1732341210003,0.27829004,3338.3,3337.6,0.02887899]
[1732341210301,0.27829004,3338.2,3337.6,0.02887899]
[1732341210627,0.27829004,3338.1,3337.6,0.02887899]
[1732341210905,0.27829004,3338.0,3337.6,0.02887899]
[1732341211086,0.2782967,3337.9,3337.6,0.02887899]
[1732341211289,0.8262,3338.4,3337.6,0.02887899]
[1732341211460,0.27834051,3338.3,3337.6,0.02887899]
[1732341211663,0.27834051,3338.2,3337.6,0.02887899]
[1732341211889,0.27834051,3338.1,3337.6,0.02887899]
[1732341212063,0.27834051,3338.0,3337.6,0.02887899]
[1732341212263,0.8262,3338.4,3337.6,0.02887899]
[1732341212264,0.27834051,3337.9,3337.6,0.02887899]
[1732341212559,0.8262,3338.4,3337.6,0.02887899]
[1732341212782,0.27839231,3338.3,3337.6,0.74160689]
[1732341212989,0.27839231,3338.2,3337.6,0.32667899]
[1732341213213,0.27839231,3338.1,3337.6,0.32667899]
[1732341213405,0.27839231,3338.0,3337.6,0.32667899]
[1732341213704,0.27839231,3337.9,3337.6,0.32667899]
[1732341213862,0.27839098,3337.8,3337.6,0.02887899]
[1732341214059,0.8262,3338.4,3337.6,0.32667899]
[1732341214296,0.27837294,3338.3,3337.6,0.32667899]
[1732341214505,0.8262,3338.4,3337.6,0.32667899]
[1732341214897,0.27838151,3338.3,3337.6,0.32667899]
[1732341215072,0.27838151,3338.2,3337.6,0.02887899]
[1732341215269,0.27838151,3338.1,3337.6,0.02887899]
[1732341215467,0.27838151,3338.0,3337.6,0.02887899]
[1732341215661,0.27838151,3337.9,3337.6,0.02887899]
[1732341215863,0.8262,3338.4,3337.6,0.74160689]
[1732341216066,0.27838193,3338.3,3337.6,0.32667899]
[1732341216298,0.27838193,3338.2,3337.6,0.32667899]
[1732341216600,0.27838193,3338.1,3337.6,0.32667899]
[1732341216902,0.27838193,3338.0,3337.6,0.02887899]
[1732341217091,0.27843535,3337.9,3337.6,0.02887899]
[1732341217278,1.10463535,3337.8,3337.6,0.02887899]
[1732341217473,0.27843535,3337.7,3337.6,1.14927899]
[1732341217901,0.8262,3338.3,3337.6,1.14927899]
[1732341218283,0.27845267,3338.2,3337.6,1.14927899]
[1732341218480,0.27845267,3338.1,3337.6,1.14927899]
[1732341218680,0.27845267,3338.0,3337.6,1.14927899]
[1732341218880,0.27845267,3337.9,3337.6,1.14927899]
[1732341219093,0.8262,3338.3,3337.6,1.14927899]
[1732341219094,0.27845267,3337.8,3337.6,1.14927899]
[1732341219291,0.8262,3338.3,3337.6,1.14927899]
[1732341219500,0.27855195,3338.2,3337.6,1.14927899]
[1732341219670,0.27855195,3338.1,3337.6,1.14927899]
[1732341219871,0.27855195,3338.0,3337.6,1.14927899]
[1732341220176,0.27855195,3337.9,3337.6,1.14927899]
[1732341220371,0.27855195,3337.8,3337.6,1.14927899]
[1732341220594,0.27855195,3337.7,3337.6,1.14927899]
[1732341220912,0.27861741,3337.7,3337.6,1.14927899]
[1732341221109,0.8262,3338.3,3337.6,1.14927899]
[1732341221283,0.27869353,3338.2,3337.6,1.14927899]
[1732341221607,0.27869353,3338.1,3337.6,1.14927899]
[1732341221775,0.27869353,3338.0,3337.6,1.14927899]
[1732341221976,0.27869353,3337.9,3337.6,1.14927899]
[1732341222178,0.27869353,3337.8,3337.6,1.14927899]
[1732341222506,0.27869353,3337.7,3337.6,1.14927899]
[1732341222920,0.27869353,3338.2,3337.6,1.14927899]
[1732341223081,0.8262,3338.3,3337.6,1.14927899]
[1732341223082,0.27869353,3338.1,3337.6,1.14927899]
[1732341223288,0.27869353,3338.0,3337.6,1.14927899]
[1732341223617,0.27869353,3337.9,3337.6,1.14927899]
[1732341223788,0.27869353,3337.8,3337.6,1.14927899]
[1732341223968,0.8262,3338.3,3337.6,1.14927899]
[1732341223969,0.27869353,3337.7,3337.6,1.14927899]
[1732341224173,0.27869353,3338.2,3337.6,1.14927899]
[1732341224398,0.27869353,3338.1,3337.6,1.14927899]
[1732341224605,0.27869353,3338.0,3337.6,1.14927899]
[1732341224785,0.27869353,3337.9,3337.6,1.14927899]
[1732341224989,0.27869353,3337.8,3337.6,1.14927899]
[1732341225388,0.27869353,3337.7,3337.6,1.14927899]
[1732341226914,0.27869353,3337.7,3337.6,0.32667899]
[1732341227815,0.27869353,3337.7,3337.6,0.02887899]
[1732341228000,0.27869353,3337.7,3337.4,0.2978]
[1732341228181,0.27869353,3337.6,3337.4,0.2978]
[1732341228374,0.27869353,3337.5,3337.4,0.2978]
[1732341229518,0.27869353,3337.5,3337.4,0.70371]
[1732341229676,0.8262,3338.3,3337.4,0.70371]
[1732341229884,0.27931439,3338.2,3337.4,0.2978]
[1732341230090,0.27931439,3338.1,3337.4,0.2978]
[1732341230278,0.27931439,3338.0,3337.4,0.2978]
[1732341230596,0.27931439,3337.9,3337.6,0.2978]
[1732341230917,0.27931439,3337.8,3337.6,0.2978]
[1732341231118,0.8262,3338.3,3337.7,0.02883748]
[1732341231274,0.27930671,3338.2,3337.7,0.02883748]
[1732341231474,0.27930671,3338.1,3337.7,0.32663748]
[1732341231679,0.27930671,3338.0,3337.7,0.32663748]
[1732341231923,0.27930717,3337.9,3337.7,0.32663748]
[1732341232121,0.27930717,3337.8,3337.7,0.32663748]
[1732341232621,0.27930717,3337.8,3337.7,0.02883748]
[1732341232835,0.27930717,3337.8,3337.4,0.2978]
[1732341232982,0.8262,3338.3,3337.7,0.02885179]
[1732341233174,0.27930228,3337.8,3337.4,0.2978]
[1732341233374,0.27930228,3337.7,3337.4,0.2978]
[1732341233626,0.27930228,3337.6,3337.4,0.2978]
[1732341233790,0.8262,3338.3,3337.4,0.2978]
[1732341233996,0.2792987,3338.2,3337.6,0.2978]
[1732341234192,0.2792987,3338.1,3337.6,0.2978]